[Event "*** Titled Tuesday Blitz"]
[Site "Chess.com"]
[Date "2020.11.03"]
[Round "4"]
[White "GameOverBro"]
[Black "Tocras"]
[Result "0-1"]
[WhiteElo "2527"]
[BlackElo "2794"]
[TimeControl "180+1"]
[EndTime "10:42:54 PST"]
[Termination "Tocras won by resignation"]

1. e4 {[%clk 0:03:00.9]} 1... c5 {[%clk 0:02:59.4]} 2. Ne2 {[%clk 0:02:59.7]}
2... Nc6 {[%clk 0:02:59.3]} 3. Nbc3 {[%clk 0:03:00]} 3... d6 {[%clk 0:02:56.7]}
4. g3 {[%clk 0:02:57.6]} 4... e5 {[%clk 0:02:54.2]} 5. d3 {[%clk 0:02:56.7]}
5... h5 {[%clk 0:02:54.5]} 6. h3 {[%clk 0:02:55.8]} 6... h4 {[%clk 0:02:53.1]}
7. g4 {[%clk 0:02:55.6]} 7... Nge7 {[%clk 0:02:53.1]} 8. f4 {[%clk 0:02:51.2]}
8... exf4 {[%clk 0:02:48.8]} 9. Nxf4 {[%clk 0:02:49.6]} 9... g5 {[%clk
0:02:34.5]} 10. Nh5 {[%clk 0:02:41]} 10... Ng6 {[%clk 0:02:28.5]} 11. Nd5 {[%clk
0:02:39.6]} 11... Be7 {[%clk 0:01:57]} 12. Bg2 {[%clk 0:02:24.4]} 12... Be6
{[%clk 0:01:54.9]} 13. O-O {[%clk 0:02:07.4]} 13... Nce5 {[%clk 0:01:40]} 14. c3
{[%clk 0:01:42.3]} 14... Bxd5 {[%clk 0:01:35.6]} 15. exd5 {[%clk 0:01:41.5]}
15... Qb6 {[%clk 0:01:35.9]} 16. Nf6+ {[%clk 0:01:33.3]} 16... Bxf6 {[%clk
0:01:28.8]} 17. Rxf6 {[%clk 0:01:34.2]} 17... O-O-O {[%clk 0:01:17.7]} 18. Be4
{[%clk 0:01:29.5]} 18... Nf4 {[%clk 0:01:04]} 19. Kh2 {[%clk 0:01:21.1]} 19...
Rde8 {[%clk 0:00:55.5]} 20. Qc2 {[%clk 0:01:19.2]} 20... Re7 {[%clk 0:00:52.2]}
21. Bxf4 {[%clk 0:01:17.9]} 21... gxf4 {[%clk 0:00:50.6]} 22. Rxf4 {[%clk
0:01:12.2]} 22... Rhe8 {[%clk 0:00:50.6]} 23. Raf1 {[%clk 0:01:03]} 23... c4
{[%clk 0:00:46.8]} 24. d4 {[%clk 0:00:58.1]} 24... Ng6 {[%clk 0:00:44.3]} 25.
Bf5+ {[%clk 0:00:52.2]} 25... Kb8 {[%clk 0:00:44.2]} 26. R4f2 {[%clk 0:00:51.3]}
26... Qb5 {[%clk 0:00:39.5]} 27. Bxg6 {[%clk 0:00:44.5]} 27... fxg6 {[%clk
0:00:40.4]} 28. Qxg6 {[%clk 0:00:44.6]} 28... Qxd5 {[%clk 0:00:41]} 29. Qf5
{[%clk 0:00:44.2]} 29... Qc6 {[%clk 0:00:38.9]} 30. g5 {[%clk 0:00:37]} 30... a6
{[%clk 0:00:39.3]} 31. g6 {[%clk 0:00:36.5]} 31... d5 {[%clk 0:00:34.5]} 32. Rg1
{[%clk 0:00:29.5]} 32... Ka7 {[%clk 0:00:32.2]} 33. g7 {[%clk 0:00:28]} 33...
Qc7+ {[%clk 0:00:32.5]} 34. Qf4 {[%clk 0:00:23.6]} 34... Rxg7 {[%clk 0:00:32.2]}
35. Qxc7 {[%clk 0:00:22.9]} 35... Rxc7 {[%clk 0:00:33.1]} 36. Rg4 {[%clk
0:00:22.8]} 36... Rh7 {[%clk 0:00:27.8]} 37. Rg5 {[%clk 0:00:20.5]} 37... Rd8
{[%clk 0:00:15.5]} 38. Kg2 {[%clk 0:00:19.6]} 38... Rd6 {[%clk 0:00:14.5]} 39.
Rff5 {[%clk 0:00:19.5]} 39... Rb6 {[%clk 0:00:14.9]} 40. Rxd5 {[%clk 0:00:14.2]}
40... Rxb2+ {[%clk 0:00:14.8]} 41. Kf3 {[%clk 0:00:14.5]} 41... Rc2 {[%clk
0:00:14.4]} 42. Rh5 {[%clk 0:00:12.3]} 42... Rxc3+ {[%clk 0:00:14.5]} 43. Kg4
{[%clk 0:00:12.9]} 43... Rg7+ {[%clk 0:00:13.3]} 44. Kxh4 {[%clk 0:00:13.3]}
44... Rgg3 {[%clk 0:00:13.9]} 45. Rc5 {[%clk 0:00:09.6]} 45... Rxh3+ {[%clk
0:00:14.1]} 46. Kg4 {[%clk 0:00:10.3]} 46... Rcg3+ {[%clk 0:00:12.6]} 47. Kf4
{[%clk 0:00:09.9]} 47... Rxh5 {[%clk 0:00:12.2]} 48. Rxh5 {[%clk 0:00:10.5]}
48... Rg2 {[%clk 0:00:12.6]} 49. Ke4 {[%clk 0:00:10.2]} 49... Rxa2 {[%clk
0:00:11.9]} 50. Rc5 {[%clk 0:00:08.5]} 50... b5 {[%clk 0:00:10.8]} 51. d5 {[%clk
0:00:08.3]} 51... Rd2 {[%clk 0:00:10]} 52. Ke3 {[%clk 0:00:06]} 52... Rd3+
{[%clk 0:00:10.3]} 53. Ke4 {[%clk 0:00:06.3]} 53... Kb6 {[%clk 0:00:10.7]} 54.
Rc6+ {[%clk 0:00:06.8]} 54... Kb7 {[%clk 0:00:11.3]} 55. Rc5 {[%clk 0:00:07]}
55... Rd1 {[%clk 0:00:09.9]} 56. Ke5 {[%clk 0:00:05.8]} 56... Kb6 {[%clk
0:00:09.3]} 57. Rc6+ {[%clk 0:00:05.9]} 57... Ka5 {[%clk 0:00:09.8]} 58. d6
{[%clk 0:00:05.8]} 58... Kb4 {[%clk 0:00:09.9]} 59. Ke6 {[%clk 0:00:05.3]} 59...
c3 {[%clk 0:00:10.2]} 60. Rxa6 {[%clk 0:00:04.2]} 60... c2 {[%clk 0:00:09.5]}
61. Rc6 {[%clk 0:00:03]} 61... c1=Q {[%clk 0:00:09.6]} 0-1

[Event "*** Titled Tuesday Blitz"]
[Site "Chess.com"]
[Date "2020.11.03"]
[Round "4"]
[White "andriipalchuk"]
[Black "Smile2005"]
[Result "1-0"]
[WhiteElo "2455"]
[BlackElo "2283"]
[TimeControl "180+1"]
[EndTime "10:42:56 PST"]
[Termination "andriipalchuk won by resignation"]

1. d4 {[%clk 0:02:35.6]} 1... Nf6 {[%clk 0:02:58.4]} 2. c4 {[%clk 0:02:34.7]}
2... g6 {[%clk 0:02:58.2]} 3. Nf3 {[%clk 0:02:35.2]} 3... Bg7 {[%clk 0:02:28.3]}
4. g3 {[%clk 0:02:34.3]} 4... O-O {[%clk 0:02:28.4]} 5. Bg2 {[%clk 0:02:34.2]}
5... d6 {[%clk 0:02:28.9]} 6. O-O {[%clk 0:02:34.9]} 6... Nc6 {[%clk 0:02:28.9]}
7. Nc3 {[%clk 0:02:34.2]} 7... e5 {[%clk 0:02:29.2]} 8. dxe5 {[%clk 0:02:25]}
8... Nxe5 {[%clk 0:02:30.1]} 9. Nxe5 {[%clk 0:02:22.1]} 9... dxe5 {[%clk
0:02:31]} 10. Qxd8 {[%clk 0:02:17.5]} 10... Rxd8 {[%clk 0:02:31.2]} 11. Bg5
{[%clk 0:02:18.2]} 11... c6 {[%clk 0:02:30.9]} 12. Ne4 {[%clk 0:02:14.8]} 12...
Nxe4 {[%clk 0:02:30.8]} 13. Bxd8 {[%clk 0:02:14.4]} 13... Be6 {[%clk 0:02:30.9]}
14. Bxe4 {[%clk 0:02:12.1]} 14... Rxd8 {[%clk 0:02:30.9]} 15. Rfd1 {[%clk
0:02:11.1]} 15... Rc8 {[%clk 0:02:29]} 16. Bd3 {[%clk 0:01:39.1]} 16... f5
{[%clk 0:02:28.3]} 17. e4 {[%clk 0:01:38.7]} 17... f4 {[%clk 0:02:28.7]} 18. Be2
{[%clk 0:01:33.1]} 18... Bf8 {[%clk 0:02:26.3]} 19. a3 {[%clk 0:01:25.8]} 19...
Bc5 {[%clk 0:02:26.3]} 20. gxf4 {[%clk 0:01:24.6]} 20... exf4 {[%clk 0:02:24.3]}
21. b4 {[%clk 0:01:25.1]} 21... Be7 {[%clk 0:02:24]} 22. Rd2 {[%clk 0:01:23.3]}
22... c5 {[%clk 0:02:18.4]} 23. bxc5 {[%clk 0:01:17.4]} 23... Rxc5 {[%clk
0:02:15.3]} 24. Rb1 {[%clk 0:01:16.6]} 24... b6 {[%clk 0:02:15.1]} 25. Kg2
{[%clk 0:00:49.6]} 25... Ra5 {[%clk 0:02:07.4]} 26. Rbb2 {[%clk 0:00:32.3]}
26... g5 {[%clk 0:01:54.9]} 27. h3 {[%clk 0:00:31.7]} 27... Re5 {[%clk
0:01:52.8]} 28. Rb5 {[%clk 0:00:31]} 28... Bc5 {[%clk 0:01:51.7]} 29. f3 {[%clk
0:00:21.1]} 29... a6 {[%clk 0:01:41.1]} 30. Rb1 {[%clk 0:00:19.6]} 30... Be3
{[%clk 0:01:34]} 31. Rd8+ {[%clk 0:00:19.1]} 31... Kg7 {[%clk 0:01:33.5]} 32.
Rd6 {[%clk 0:00:16.1]} 32... Kf6 {[%clk 0:01:32.1]} 33. Rbxb6 {[%clk 0:00:14]}
33... Bxb6 {[%clk 0:01:31.6]} 34. Rxb6 {[%clk 0:00:14.9]} 34... Ra5 {[%clk
0:01:28]} 35. Kf2 {[%clk 0:00:09.6]} 35... Rxa3 {[%clk 0:01:27.9]} 36. c5 {[%clk
0:00:10.2]} 36... Rc3 {[%clk 0:01:23]} 37. c6 {[%clk 0:00:07.1]} 37... Rc2
{[%clk 0:01:23.1]} 38. Kf1 {[%clk 0:00:06.7]} 38... a5 {[%clk 0:01:23.3]} 39.
Ke1 {[%clk 0:00:06.8]} 39... Ke5 {[%clk 0:01:17.7]} 40. Rb5+ {[%clk 0:00:05.7]}
40... Kd4 {[%clk 0:01:17.7]} 41. Rxa5 {[%clk 0:00:05.5]} 41... Ke3 {[%clk
0:01:17.7]} 42. Ra3+ {[%clk 0:00:05.6]} 42... Kd4 {[%clk 0:01:17.9]} 43. Rd3+
{[%clk 0:00:02.9]} 43... Ke5 {[%clk 0:01:16.1]} 44. Bf1 {[%clk 0:00:03.5]} 44...
Rxc6 {[%clk 0:01:15.8]} 45. Kf2 {[%clk 0:00:03.1]} 45... Rc2+ {[%clk 0:01:15.3]}
46. Kg1 {[%clk 0:00:03.3]} 46... Bc4 {[%clk 0:01:15.6]} 47. Rd1 {[%clk
0:00:02.2]} 47... Bxf1 {[%clk 0:01:14.4]} 48. Rxf1 {[%clk 0:00:01.2]} 48... Kd4
{[%clk 0:01:13.9]} 49. Re1 {[%clk 0:00:01.5]} 49... Rc3 {[%clk 0:01:13]} 50. Kg2
{[%clk 0:00:01.2]} 50... Rc2+ {[%clk 0:01:12.9]} 51. Kg1 {[%clk 0:00:02.1]}
51... Rc5 {[%clk 0:01:10.9]} 52. Kg2 {[%clk 0:00:02.3]} 52... h5 {[%clk
0:01:10.9]} 53. Kg1 {[%clk 0:00:02.7]} 53... Ke5 {[%clk 0:01:11]} 54. Kg2 {[%clk
0:00:03.3]} 54... Rc2+ {[%clk 0:01:11.1]} 55. Kg1 {[%clk 0:00:04]} 55... Rc3
{[%clk 0:01:06.8]} 56. Kg2 {[%clk 0:00:04.1]} 56... Ra3 {[%clk 0:01:06.5]} 57.
Rd1 {[%clk 0:00:04.5]} 57... Ra2+ {[%clk 0:01:06.7]} 58. Kg1 {[%clk 0:00:05.2]}
58... Ra5 {[%clk 0:01:04.1]} 59. Kg2 {[%clk 0:00:05.8]} 59... Rc5 {[%clk
0:01:04.5]} 60. Rd2 {[%clk 0:00:05.6]} 60... g4 {[%clk 0:01:03.1]} 61. hxg4
{[%clk 0:00:05.5]} 61... hxg4 {[%clk 0:01:03.4]} 62. fxg4 {[%clk 0:00:06.2]}
62... Kxe4 {[%clk 0:01:03.8]} 63. Re2+ {[%clk 0:00:06.8]} 63... Kd4 {[%clk
0:01:03.5]} 64. Kf3 {[%clk 0:00:07.4]} 64... Re5 {[%clk 0:00:57.9]} 65. Rd2+
{[%clk 0:00:06.6]} 65... Kc3 {[%clk 0:00:58.2]} 66. Rd8 {[%clk 0:00:06.9]} 66...
Re7 {[%clk 0:00:56]} 67. Kxf4 {[%clk 0:00:07.1]} 67... Kc4 {[%clk 0:00:54.6]}
68. g5 {[%clk 0:00:07]} 68... Kc5 {[%clk 0:00:55.1]} 69. Kf5 {[%clk 0:00:07.6]}
69... Kc6 {[%clk 0:00:55.7]} 70. Rd1 {[%clk 0:00:08.2]} 1-0

[Event "*** Titled Tuesday Blitz"]
[Site "Chess.com"]
[Date "2020.11.03"]
[Round "4"]
[White "Ranindu2003"]
[Black "lucachess49"]
[Result "0-1"]
[WhiteElo "2579"]
[BlackElo "2365"]
[TimeControl "180+1"]
[EndTime "10:42:57 PST"]
[Termination "lucachess49 won by resignation"]

1. e4 {[%clk 0:02:59.8]} 1... e5 {[%clk 0:02:59.6]} 2. Nf3 {[%clk 0:02:59.4]}
2... Nc6 {[%clk 0:02:59.2]} 3. Bc4 {[%clk 0:02:59.1]} 3... Nf6 {[%clk
0:02:55.8]} 4. d3 {[%clk 0:02:58.9]} 4... Be7 {[%clk 0:02:55.5]} 5. O-O {[%clk
0:02:58.1]} 5... O-O {[%clk 0:02:50.9]} 6. Re1 {[%clk 0:02:58.6]} 6... d6 {[%clk
0:02:36.6]} 7. a4 {[%clk 0:02:58.3]} 7... Na5 {[%clk 0:02:28.3]} 8. Ba2 {[%clk
0:02:56.7]} 8... c5 {[%clk 0:02:28.8]} 9. c3 {[%clk 0:02:54.3]} 9... Nc6 {[%clk
0:02:28.4]} 10. h3 {[%clk 0:02:51.3]} 10... a6 {[%clk 0:02:28.8]} 11. Na3 {[%clk
0:02:50.1]} 11... Re8 {[%clk 0:02:28.7]} 12. Nc4 {[%clk 0:02:46.9]} 12... Be6
{[%clk 0:02:28.1]} 13. Ng5 {[%clk 0:01:54.8]} 13... Bf8 {[%clk 0:02:17.6]} 14.
Nxe6 {[%clk 0:01:51.1]} 14... fxe6 {[%clk 0:02:17.3]} 15. Bg5 {[%clk 0:01:30.6]}
15... h6 {[%clk 0:02:10]} 16. Bh4 {[%clk 0:01:28.9]} 16... Qc7 {[%clk
0:01:53.6]} 17. Ne3 {[%clk 0:01:21.8]} 17... Qf7 {[%clk 0:01:49.6]} 18. Rf1
{[%clk 0:01:15]} 18... g5 {[%clk 0:01:34]} 19. Bg3 {[%clk 0:01:14.7]} 19... Rad8
{[%clk 0:01:34.6]} 20. h4 {[%clk 0:00:51.5]} 20... Ne7 {[%clk 0:00:47]} 21. Rb1
{[%clk 0:00:41.9]} 21... Ng6 {[%clk 0:00:39.6]} 22. hxg5 {[%clk 0:00:39.6]}
22... hxg5 {[%clk 0:00:40.5]} 23. b4 {[%clk 0:00:39.2]} 23... Nf4 {[%clk
0:00:37.3]} 24. Ng4 {[%clk 0:00:32.6]} 24... N6h5 {[%clk 0:00:20.6]} 25. bxc5
{[%clk 0:00:30.4]} 25... dxc5 {[%clk 0:00:20.3]} 26. Nxe5 {[%clk 0:00:27.1]}
26... Qg7 {[%clk 0:00:19.8]} 27. Ng4 {[%clk 0:00:12.4]} 27... Rxd3 {[%clk
0:00:17.3]} 28. Qc2 {[%clk 0:00:12.5]} 28... Red8 {[%clk 0:00:14.8]} 29. Rfd1
{[%clk 0:00:09.1]} 29... Qd7 {[%clk 0:00:09.2]} 30. Rxd3 {[%clk 0:00:08]} 30...
Qxd3 {[%clk 0:00:09.1]} 31. Qb3 {[%clk 0:00:06.5]} 31... Nxg3 {[%clk 0:00:06.7]}
32. fxg3 {[%clk 0:00:06.4]} 32... Ne2+ {[%clk 0:00:06.8]} 33. Kh1 {[%clk
0:00:03.8]} 33... Nxg3+ {[%clk 0:00:06.5]} 34. Kh2 {[%clk 0:00:04.3]} 34... Re8
{[%clk 0:00:06.1]} 35. Nf6+ {[%clk 0:00:03.6]} 35... Kh8 {[%clk 0:00:04.4]} 36.
Nxe8 {[%clk 0:00:04.5]} 36... Nxe4 {[%clk 0:00:03.9]} 37. Qxe6 {[%clk
0:00:04.3]} 37... Qg3+ {[%clk 0:00:03.8]} 38. Kh1 {[%clk 0:00:04.7]} 38... Qh4+
{[%clk 0:00:04]} 39. Qh3 {[%clk 0:00:04.9]} 39... Nf2+ {[%clk 0:00:04.3]} 40.
Kh2 {[%clk 0:00:05.1]} 40... Nxh3 {[%clk 0:00:04.7]} 41. gxh3 {[%clk 0:00:06]}
41... Qf4+ {[%clk 0:00:04.8]} 42. Kg2 {[%clk 0:00:06.2]} 42... Qe4+ {[%clk
0:00:05.1]} 43. Kf2 {[%clk 0:00:05.8]} 43... Qxe8 {[%clk 0:00:05.4]} 44. Re1
{[%clk 0:00:06.1]} 44... Qd8 {[%clk 0:00:04.8]} 45. Bb3 {[%clk 0:00:05.2]} 45...
c4 {[%clk 0:00:05]} 46. Bc2 {[%clk 0:00:05.4]} 46... Bc5+ {[%clk 0:00:05]} 47.
Kf3 {[%clk 0:00:05.4]} 47... Qd5+ {[%clk 0:00:04.3]} 48. Be4 {[%clk 0:00:04.8]}
48... Qf7+ {[%clk 0:00:04.5]} 49. Kg4 {[%clk 0:00:04.9]} 49... Qf4+ {[%clk
0:00:04.6]} 50. Kh5 {[%clk 0:00:05.4]} 50... Bf2 {[%clk 0:00:03.8]} 51. Kg6
{[%clk 0:00:05.3]} 51... Bxe1 {[%clk 0:00:03.5]} 52. Bf5 {[%clk 0:00:04.4]}
52... Qd6+ {[%clk 0:00:02.9]} 53. Kh5 {[%clk 0:00:04.4]} 53... Bd2 {[%clk
0:00:03.8]} 0-1

[Event "*** Titled Tuesday Blitz"]
[Site "Chess.com"]
[Date "2020.11.03"]
[Round "4"]
[White "doons21"]
[Black "Radzio1987"]
[Result "0-1"]
[WhiteElo "2591"]
[BlackElo "2812"]
[TimeControl "180+1"]
[EndTime "10:42:59 PST"]
[Termination "Radzio1987 won on time"]

1. e4 {[%clk 0:03:00.9]} 1... c6 {[%clk 0:02:55.3]} 2. d3 {[%clk 0:02:57.6]}
2... d5 {[%clk 0:02:56.2]} 3. Nd2 {[%clk 0:02:58.1]} 3... g6 {[%clk 0:02:54]} 4.
Ngf3 {[%clk 0:02:57.6]} 4... Bg7 {[%clk 0:02:54]} 5. g3 {[%clk 0:02:58.2]} 5...
e5 {[%clk 0:02:53.8]} 6. Bg2 {[%clk 0:02:58.4]} 6... Ne7 {[%clk 0:02:54.4]} 7.
O-O {[%clk 0:02:59]} 7... O-O {[%clk 0:02:54.5]} 8. Re1 {[%clk 0:02:59.5]} 8...
d4 {[%clk 0:02:54.1]} 9. Nc4 {[%clk 0:02:57.4]} 9... Qc7 {[%clk 0:02:53.2]} 10.
a4 {[%clk 0:02:56.8]} 10... Be6 {[%clk 0:02:51.2]} 11. Ng5 {[%clk 0:02:41.7]}
11... Bxc4 {[%clk 0:02:46.8]} 12. dxc4 {[%clk 0:02:42.6]} 12... Nd7 {[%clk
0:02:46.7]} 13. f4 {[%clk 0:02:39.1]} 13... exf4 {[%clk 0:02:32.8]} 14. gxf4
{[%clk 0:02:36.3]} 14... Nc5 {[%clk 0:02:16.7]} 15. Ra3 {[%clk 0:02:14.1]} 15...
h6 {[%clk 0:02:10]} 16. Nh3 {[%clk 0:02:03.1]} 16... Rad8 {[%clk 0:02:04.5]} 17.
Nf2 {[%clk 0:02:02.8]} 17... a5 {[%clk 0:01:53.4]} 18. Rg3 {[%clk 0:01:46.2]}
18... Nxa4 {[%clk 0:01:29.7]} 19. f5 {[%clk 0:01:46.4]} 19... Nc5 {[%clk
0:01:22.2]} 20. Ng4 {[%clk 0:00:47.1]} 20... h5 {[%clk 0:01:22.1]} 21. Nf2
{[%clk 0:00:47.5]} 21... Be5 {[%clk 0:01:11.6]} 22. Rh3 {[%clk 0:00:47.5]} 22...
Kg7 {[%clk 0:01:09.4]} 23. Nd3 {[%clk 0:00:45.4]} 23... Nxd3 {[%clk 0:01:08.4]}
24. cxd3 {[%clk 0:00:45.9]} 24... b5 {[%clk 0:01:03.1]} 25. Rf1 {[%clk
0:00:39.2]} 25... bxc4 {[%clk 0:00:52]} 26. dxc4 {[%clk 0:00:22.4]} 26... Qd6
{[%clk 0:00:51.6]} 27. Bg5 {[%clk 0:00:20.7]} 27... f6 {[%clk 0:00:43.8]} 28.
Bd2 {[%clk 0:00:18.6]} 28... g5 {[%clk 0:00:44.1]} 29. Qxh5 {[%clk 0:00:17.4]}
29... Rh8 {[%clk 0:00:44.5]} 30. Qg4 {[%clk 0:00:17.8]} 30... Rxh3 {[%clk
0:00:36.9]} 31. Bxh3 {[%clk 0:00:18.2]} 31... Rh8 {[%clk 0:00:36.8]} 32. Bxg5
{[%clk 0:00:17.5]} 32... fxg5 {[%clk 0:00:36.9]} 33. Qxg5+ {[%clk 0:00:16.8]}
33... Kf8 {[%clk 0:00:32.9]} 34. Bg4 {[%clk 0:00:14.8]} 34... Qf6 {[%clk
0:00:29.2]} 35. Qxf6+ {[%clk 0:00:03.9]} 35... Bxf6 {[%clk 0:00:30.1]} 36. Ra1
{[%clk 0:00:04.3]} 36... d3 {[%clk 0:00:24.5]} 37. Rxa5 {[%clk 0:00:03.7]} 37...
Bd4+ {[%clk 0:00:24.6]} 38. Kg2 {[%clk 0:00:03.3]} 38... d2 {[%clk 0:00:21.1]}
39. Ra8+ {[%clk 0:00:03.1]} 39... Kg7 {[%clk 0:00:21.3]} 40. Rxh8 {[%clk
0:00:04]} 40... Kxh8 {[%clk 0:00:22.2]} 41. b4 {[%clk 0:00:04.9]} 41... Kg7
{[%clk 0:00:21.7]} 42. b5 {[%clk 0:00:05.2]} 42... cxb5 {[%clk 0:00:21.6]} 43.
cxb5 {[%clk 0:00:06.1]} 43... Kf6 {[%clk 0:00:21.7]} 44. Kf1 {[%clk 0:00:06.3]}
44... Nc8 {[%clk 0:00:21.8]} 45. Ke2 {[%clk 0:00:06]} 45... Bc3 {[%clk
0:00:22.3]} 46. Kd3 {[%clk 0:00:06.3]} 46... Ba5 {[%clk 0:00:22.4]} 47. Kc4
{[%clk 0:00:06.6]} 47... Ke5 {[%clk 0:00:22.2]} 48. Kc5 {[%clk 0:00:05.8]} 48...
Nd6 {[%clk 0:00:15.3]} 49. b6 {[%clk 0:00:02.6]} 49... Nxe4+ {[%clk 0:00:14.8]}
50. Kc6 {[%clk 0:00:03.2]} 50... Bb4 {[%clk 0:00:13.8]} 51. b7 {[%clk
0:00:03.1]} 51... Bd6 {[%clk 0:00:14]} 52. h4 {[%clk 0:00:03.8]} 52... Nf6
{[%clk 0:00:13.7]} 53. Bd1 {[%clk 0:00:03.7]} 53... Bb8 {[%clk 0:00:13.7]} 54.
h5 {[%clk 0:00:03]} 54... Kxf5 {[%clk 0:00:13.9]} 55. Kc5 {[%clk 0:00:03.1]}
55... Ke4 {[%clk 0:00:13.9]} 56. Kc4 {[%clk 0:00:03.2]} 56... Ke3 {[%clk
0:00:14.3]} 57. Kc3 {[%clk 0:00:03.6]} 57... Be5+ {[%clk 0:00:14.3]} 58. Kc2
{[%clk 0:00:03.5]} 58... Ng8 {[%clk 0:00:12.5]} 59. Kb3 {[%clk 0:00:01.7]} 59...
Kf2 {[%clk 0:00:11]} 0-1

[Event "*** Titled Tuesday Blitz"]
[Site "Chess.com"]
[Date "2020.11.03"]
[Round "4"]
[White "XDPS"]
[Black "BigAl"]
[Result "1-0"]
[WhiteElo "2663"]
[BlackElo "2472"]
[TimeControl "180+1"]
[EndTime "10:43:02 PST"]
[Termination "XDPS won by checkmate"]

1. e4 {[%clk 0:03:00.9]} 1... c6 {[%clk 0:02:59.8]} 2. Nf3 {[%clk 0:02:57.7]}
2... d5 {[%clk 0:03:00.4]} 3. Nc3 {[%clk 0:02:57]} 3... dxe4 {[%clk 0:03:00.6]}
4. Nxe4 {[%clk 0:02:57.3]} 4... Nf6 {[%clk 0:03:01.1]} 5. Qe2 {[%clk 0:02:57.7]}
5... Be6 {[%clk 0:03:00.8]} 6. Neg5 {[%clk 0:02:51]} 6... Bd5 {[%clk 0:03:00.2]}
7. c4 {[%clk 0:02:49.8]} 7... h6 {[%clk 0:03:00.5]} 8. Nh3 {[%clk 0:02:43.2]}
8... Be4 {[%clk 0:02:46.1]} 9. d3 {[%clk 0:02:34.1]} 9... Bh7 {[%clk 0:02:45.6]}
10. Bd2 {[%clk 0:02:32.5]} 10... e6 {[%clk 0:02:39.9]} 11. Bc3 {[%clk
0:02:32.4]} 11... Nbd7 {[%clk 0:02:39.8]} 12. Nf4 {[%clk 0:02:31.1]} 12... a5
{[%clk 0:02:27.5]} 13. a3 {[%clk 0:02:25.4]} 13... Bd6 {[%clk 0:02:18.9]} 14. g3
{[%clk 0:01:21.4]} 14... Qc7 {[%clk 0:02:18.4]} 15. Qe3 {[%clk 0:00:54.9]} 15...
O-O-O {[%clk 0:01:59.4]} 16. d4 {[%clk 0:00:26.8]} 16... Ng4 {[%clk 0:01:41]}
17. Qc1 {[%clk 0:00:23.9]} 17... e5 {[%clk 0:01:37.2]} 18. Ne2 {[%clk
0:00:20.1]} 18... e4 {[%clk 0:01:20.2]} 19. Nh4 {[%clk 0:00:15.9]} 19... e3
{[%clk 0:01:03.6]} 20. fxe3 {[%clk 0:00:16.1]} 20... Rhe8 {[%clk 0:01:03.8]} 21.
Ng2 {[%clk 0:00:16]} 21... Be4 {[%clk 0:01:04.1]} 22. Bd2 {[%clk 0:00:16]} 22...
g5 {[%clk 0:00:48.2]} 23. Qc3 {[%clk 0:00:15.8]} 23... a4 {[%clk 0:00:37.7]} 24.
c5 {[%clk 0:00:15.8]} 24... Bf8 {[%clk 0:00:33.7]} 25. h3 {[%clk 0:00:16.3]}
25... Ngf6 {[%clk 0:00:29.9]} 26. Qa5 {[%clk 0:00:12.6]} 26... Nd5 {[%clk
0:00:26.1]} 27. Qxc7+ {[%clk 0:00:12.2]} 27... Kxc7 {[%clk 0:00:23.4]} 28. Kf2
{[%clk 0:00:12.5]} 28... Ra8 {[%clk 0:00:19.4]} 29. Nc3 {[%clk 0:00:12.5]} 29...
N7f6 {[%clk 0:00:19.7]} 30. Nxd5+ {[%clk 0:00:11.3]} 30... Bxd5 {[%clk 0:00:20]}
31. Be1 {[%clk 0:00:10.9]} 31... Ne4+ {[%clk 0:00:19.8]} 32. Kg1 {[%clk
0:00:11.3]} 32... f5 {[%clk 0:00:18.8]} 33. Rh2 {[%clk 0:00:11.6]} 33... Bg7
{[%clk 0:00:18.4]} 34. Bd3 {[%clk 0:00:11.7]} 34... Re7 {[%clk 0:00:17.7]} 35.
Rd1 {[%clk 0:00:12.2]} 35... Rae8 {[%clk 0:00:17.7]} 36. Ba5+ {[%clk 0:00:12.3]}
36... Kc8 {[%clk 0:00:17.5]} 37. Be1 {[%clk 0:00:13.1]} 37... Bf6 {[%clk
0:00:17.2]} 38. h4 {[%clk 0:00:12.8]} 38... Rg7 {[%clk 0:00:14.9]} 39. hxg5
{[%clk 0:00:12.9]} 39... hxg5 {[%clk 0:00:15.1]} 40. Rh6 {[%clk 0:00:12.7]}
40... Bd8 {[%clk 0:00:15]} 41. Bc2 {[%clk 0:00:11.8]} 41... Bc7 {[%clk
0:00:15.3]} 42. Kh2 {[%clk 0:00:10.4]} 42... f4 {[%clk 0:00:12.5]} 43. exf4
{[%clk 0:00:10.4]} 43... gxf4 {[%clk 0:00:12.3]} 44. Nxf4 {[%clk 0:00:04.9]}
44... Rf8 {[%clk 0:00:06.6]} 45. Bxe4 {[%clk 0:00:04.4]} 45... Bxe4 {[%clk
0:00:06.5]} 46. Bd2 {[%clk 0:00:04.8]} 46... Rfg8 {[%clk 0:00:05.9]} 47. Rg1
{[%clk 0:00:05.1]} 47... Rg4 {[%clk 0:00:04.1]} 48. Be3 {[%clk 0:00:05.1]} 48...
Bf5 {[%clk 0:00:03]} 49. Rh4 {[%clk 0:00:04.7]} 49... R4g7 {[%clk 0:00:02.5]}
50. Rh5 {[%clk 0:00:04.8]} 50... Bg4 {[%clk 0:00:02.7]} 51. Rh4 {[%clk
0:00:05.1]} 51... Bd8 {[%clk 0:00:02.7]} 52. Rh6 {[%clk 0:00:04.7]} 52... Bf3
{[%clk 0:00:03.6]} 53. Rh3 {[%clk 0:00:04.2]} 53... Be4 {[%clk 0:00:04.2]} 54.
Ne6 {[%clk 0:00:04.4]} 54... Rg6 {[%clk 0:00:02.4]} 55. Nf4 {[%clk 0:00:04.8]}
55... Rg4 {[%clk 0:00:02]} 56. Bf2 {[%clk 0:00:05.7]} 56... Bf3 {[%clk
0:00:02.3]} 57. Re1 {[%clk 0:00:05.9]} 57... Be4 {[%clk 0:00:02.9]} 58. Rxe4
{[%clk 0:00:06.2]} 58... R4g5 {[%clk 0:00:02.8]} 59. Ne6 {[%clk 0:00:05.8]}
59... R5g6 {[%clk 0:00:02.9]} 60. Be3 {[%clk 0:00:06.2]} 60... Rh8 {[%clk
0:00:03.1]} 61. Rxh8 {[%clk 0:00:05.9]} 61... Rg7 {[%clk 0:00:03.3]} 62. Rxd8#
{[%clk 0:00:06.3]} 1-0